bitfinex/quotes_ETHUSD_20260219
["timestamp","ask_amount","ask_price","bid_price","bid_amount"]
[1771507119958,2.34708841,1937.9,1937.2,3.32558898]
[1771507120842,3.46137822,1938.0,1937.3,2.03506658]
[1771507121038,4.51837822,1938.0,1937.3,2.03506658]
[1771507121653,3.22838445,1938.0,1937.3,2.03506658]
[1771507121854,3.46137933,1938.0,1937.4,1.29038918]
[1771507122055,4.51837933,1938.0,1937.4,1.29038918]
[1771507122447,3.22838445,1938.0,1937.4,1.29038918]
[1771507122647,4.51837958,1938.0,1937.4,1.29038918]
[1771507123254,3.46137958,1938.0,1937.4,1.29038918]
[1771507123461,4.51837958,1938.0,1937.4,1.29038918]
[1771507123662,2.17138445,1938.5,1937.5,2.03506658]
[1771507123862,2.17138445,1938.8,1937.6,2.03396658]
[1771507124062,2.17138445,1938.8,1937.8,2.03396658]
[1771507124375,4.51784704,1938.8,1937.8,2.03396658]
[1771507124547,2.17138445,1938.7,1937.9,2.03506658]
[1771507124746,2.17138445,1938.7,1937.9,2.03396658]
[1771507124970,2.17138445,1938.7,1938.0,0.0011]
[1771507126277,2.17138445,1939.0,1938.1,2.03506658]
[1771507126489,2.17138445,1939.0,1938.1,2.03396658]
[1771507126695,0.001,1939.1,1938.1,2.03396658]
[1771507126696,0.426,1939.1,1938.1,2.03396658]
[1771507126851,1.71527214,1939.1,1938.3,2.03396658]
[1771507127474,2.34627214,1939.1,1938.3,2.03396658]
[1771507127852,1.057,1939.1,1938.3,2.03396658]
[1771507128048,0.001,1939.1,1938.4,2.03506658]
[1771507128359,1.29026132,1939.1,1938.5,1.28965695]
[1771507128556,0.001,1939.1,1938.5,1.29075695]
[1771507128874,0.001,1939.1,1938.6,0.0011]
[1771507129075,0.001,1939.1,1938.7,0.0011]
[1771507129274,0.001,1939.1,1938.6,2.03506658]
[1771507130488,0.001,1939.1,1938.7,3.32459048]
[1771507130654,0.001,1939.4,1938.8,2.03396658]
[1771507130855,0.001,1939.0,1938.8,2.03506658]
[1771507131071,0.001,1939.0,1938.7,1.2895239]
[1771507131072,0.001,1939.4,1938.9,2.03506658]
[1771507131278,0.001,1939.4,1938.9,2.03396658]
[1771507132570,0.001,1939.4,1939.0,3.32329097]
[1771507134394,2.17138445,1939.1,1938.2,0.18685624]
[1771507134703,2.17138445,1939.1,1937.9,3.32399088]
[1771507134704,2.17138445,1938.9,1937.9,3.32399088]
[1771507135106,2.34431005,1939.1,1938.0,2.03396658]
[1771507135269,2.17138445,1939.0,1938.0,2.03396658]
[1771507138315,3.46077534,1938.9,1938.1,1.28992312]
[1771507138811,2.17138445,1938.8,1938.1,1.28992312]
[1771507139009,1.28939089,1938.9,1937.1,0.0011]
[1771507139010,2.17138445,1938.4,1937.1,0.0011]
[1771507139184,2.17138445,1937.8,1937.1,0.0011]
[1771507139507,2.17138445,1937.7,1937.1,0.0011]
[1771507140408,1.29025598,1937.6,1937.1,0.0011]
[1771507140582,3.24124736,1937.6,1937.1,0.0011]
[1771507140783,1.95099138,1937.5,1937.1,0.0011]
[1771507141712,1.95099138,1937.3,1937.0,0.0011]
[1771507142114,3.00999138,1937.3,1937.0,0.0011]
[1771507142591,3.24148802,1937.3,1937.0,0.0011]
[1771507142993,4.30048802,1937.3,1937.0,0.0011]
[1771507143518,4.30048802,1937.3,1936.9,0.0011]
[1771507143519,1.95099138,1937.2,1936.9,0.0011]
[1771507143682,1.95099138,1936.9,1935.7,1.29449068]
[1771507143881,1.95099138,1936.7,1935.7,1.29449068]
[1771507144085,1.95099138,1936.7,1935.8,0.0011]
[1771507144279,2.51699138,1936.7,1935.8,0.0011]
[1771507144482,1.95099138,1936.6,1935.9,0.0011]
[1771507144686,3.24198027,1936.5,1935.8,0.0011]
[1771507145186,3.24198027,1936.5,1935.9,0.0011]
[1771507145416,1.95099138,1936.4,1935.8,0.0011]
[1771507145721,1.29098889,1936.5,1935.7,0.003]
[1771507145722,1.95099138,1936.2,1935.7,0.003]
[1771507146211,1.95099138,1936.3,1935.7,0.003]
[1771507146517,3.01199138,1936.3,1935.7,0.003]
[1771507146680,1.95099138,1936.3,1935.7,0.003]
[1771507147082,3.24211389,1936.3,1935.7,0.003]
[1771507148082,1.95099138,1936.3,1935.7,0.003]
[1771507148384,2.03543734,1936.2,1935.7,0.003]
[1771507148785,2.03543734,1936.0,1935.7,0.003]
[1771507149212,3.32660593,1936.3,1935.7,0.003]
[1771507149420,2.03543734,1936.2,1935.7,0.003]
[1771507150214,1.062,1936.1,1935.7,0.003]
[1771507150422,2.03543734,1936.6,1935.7,0.003]
[1771507150717,3.32649527,1936.4,1935.7,0.003]
[1771507151018,1.29105793,1936.4,1935.7,0.003]
[1771507151313,2.35304085,1936.5,1935.7,0.003]
[1771507151515,1.062,1936.5,1935.7,0.003]
[1771507151815,8.12898712,1936.7,1935.7,2.0819061]
[1771507151816,4.38830299,1936.7,1935.7,2.0819061]
[1771507152181,2.03543734,1936.6,1935.7,2.0819061]
[1771507152394,2.03543734,1936.6,1935.7,0.003]
[1771507152623,3.09843734,1936.6,1935.7,0.003]
[1771507152794,2.03543734,1936.4,1935.7,0.003]
[1771507153188,1.063,1936.3,1935.7,0.003]
[1771507154289,3.09843734,1936.3,1935.7,0.003]
[1771507154619,3.09843734,1936.3,1935.3,0.88774105]
[1771507154620,2.03543734,1936.2,1935.3,0.88774105]
[1771507154789,2.03543734,1936.0,1935.3,0.88774105]
[1771507154991,2.03543734,1936.0,1935.3,2.17952017]
[1771507155205,2.35425561,1936.1,1935.8,0.0011]
[1771507155389,4.38969295,1936.1,1935.8,0.0011]
[1771507155591,2.35417338,1936.3,1935.8,0.0011]
[1771507155801,4.38961072,1936.3,1935.8,0.0011]
[1771507156006,2.03543734,1936.2,1935.8,0.0011]
[1771507156903,2.35413027,1936.3,1935.8,0.0011]
[1771507157822,1.29113027,1936.3,1935.8,0.0011]
[1771507158225,0.1024,1936.7,1935.9,2.0789061]
[1771507158527,1.29070611,1937.0,1936.0,2.0789061]
[1771507158919,3.32614345,1937.0,1936.1,1.29125561]
[1771507159122,4.39014345,1937.0,1936.1,1.29125561]
[1771507159427,1.064,1937.1,1936.2,2.0789061]
[1771507159593,1.064,1937.1,1935.8,7.11012246]
[1771507159594,2.03543734,1936.7,1935.8,0.0011]
[1771507159792,2.03543734,1936.5,1935.8,0.0011]
[1771507160018,3.10043734,1936.4,1935.8,0.0011]
[1771507160192,1.065,1936.4,1935.8,0.0011]
[1771507160394,2.03543734,1936.3,1935.8,0.0011]
[1771507160998,1.29118892,1936.2,1935.8,0.0011]
[1771507161523,3.3266118,1936.3,1935.8,0.0011]
[1771507163125,4.3916118,1936.3,1935.8,0.0011]
[1771507164125,1.29117446,1936.3,1935.8,0.0011]
[1771507164304,1.065,1936.3,1935.8,0.0011]
[1771507164503,2.03298889,1936.5,1935.8,0.0011]
[1771507164723,0.742,1936.5,1935.8,0.0011]
[1771507164895,1.29089545,1936.7,1935.8,2.0800061]
[1771507165096,2.35481894,1936.8,1935.9,1.29138901]
[1771507165317,2.03543734,1936.7,1935.8,0.0011]
[1771507165622,2.03543734,1936.2,1935.7,0.0011]
[1771507165922,3.10043734,1936.1,1935.7,0.0011]
[1771507166135,1.067,1936.0,1935.7,0.0011]
[1771507166700,3.10243734,1936.0,1935.7,0.0011]
[1771507167421,1.29138901,1935.9,1935.7,0.0011]
[1771507167625,3.32682635,1935.9,1935.7,0.0011]
[1771507167822,2.03543734,1935.8,1935.7,0.0011]
[1771507169346,3.32689306,1935.8,1935.7,0.0011]
[1771507170163,1.29145572,1935.8,1935.5,0.0011]
[1771507170436,2.03543734,1935.1,1934.2,0.00348329]
[1771507170611,2.03543734,1934.9,1934.2,0.00348329]
[1771507170814,0.702,1935.6,1934.5,2.0789061]
[1771507171013,2.03543734,1935.4,1934.5,2.0789061]
[1771507171338,2.3306905,1935.5,1934.6,1.29225679]
[1771507171540,1.2916905,1935.5,1934.6,1.40309319]
[1771507171742,1.071,1935.9,1934.7,2.0789061]
[1771507172327,1.071,1935.9,1934.6,8.32918144]
[1771507172328,2.03543734,1936.1,1934.8,2.0789061]
[1771507172647,1.29122502,1936.2,1934.8,2.1897425]
[1771507172648,2.03543734,1935.8,1934.8,2.1897425]
[1771507172946,3.10643734,1935.7,1934.8,2.1897425]
[1771507173536,2.36253834,1935.7,1934.9,1.29205643]
[1771507173737,3.32680392,1936.0,1935.0,2.0789061]
[1771507174461,1.29125561,1936.1,1935.0,2.0789061]
[1771507174654,1.29125561,1936.1,1935.0,2.1897425]
[1771507174819,1.29098889,1936.5,1935.3,6.92608825]
[1771507175025,2.36098889,1936.5,1935.4,2.0789061]
[1771507175239,2.03643734,1936.6,1935.4,2.0789061]
[1771507175449,0.001,1936.6,1935.5,1.2916559]
[1771507175655,0.001,1936.6,1935.7,6.92608825]
[1771507175838,0.001,1936.6,1935.8,2.0789061]
[1771507176653,2.03543734,1937.2,1936.2,2.0507048]
[1771507176849,3.31237446,1937.5,1936.2,2.0507048]
[1771507177156,4.38237446,1937.5,1936.2,3.9977048]
[1771507177452,5.16114677,1937.6,1936.2,3.9977048]
[1771507177453,1.29028699,1937.6,1936.5,2.0507048]
[1771507177654,3.31189858,1938.2,1937.0,8.97679305]
[1771507177821,2.02199948,1938.1,1937.0,2.0507048]
[1771507178320,2.02199948,1937.8,1936.6,1.29092223]
[1771507178519,2.02199948,1937.7,1936.6,3.34162703]
[1771507178745,0.1024,1937.9,1936.7,2.0507048]
[1771507178944,0.906,1937.9,1936.7,2.0507048]
[1771507180153,3.31203513,1938.0,1936.9,2.0507048]
[1771507180352,1.29003565,1938.0,1936.9,2.0507048]
[1771507180647,3.31203513,1938.0,1936.9,2.0507048]
[1771507181152,1.069,1938.1,1937.0,2.0507048]
[1771507181328,2.22086083,1938.2,1937.1,2.0507048]
[1771507181534,2.22086394,1938.2,1937.1,2.0507048]
[1771507181750,1.28978967,1938.4,1937.1,2.0507048]
[1771507182256,5.15863797,1938.5,1937.3,2.0507048]
[1771507182621,2.02199948,1938.4,1937.3,2.0507048]
[1771507182850,2.02199948,1938.4,1937.2,1.2905224]
[1771507182851,2.02199948,1938.3,1937.2,1.2905224]
[1771507183050,2.02199948,1938.3,1937.2,3.3412272]
[1771507183254,2.02199948,1938.3,1937.3,2.0507048]
[1771507184951,1.067,1938.4,1937.3,2.0507048]
[1771507185142,1.067,1938.4,1937.5,2.0507048]
[1771507185459,1.2896695,1938.5,1937.5,2.0507048]
[1771507185954,3.31163638,1938.6,1937.5,2.0507048]
[1771507187237,2.02199948,1938.5,1937.6,1.29025598]
[1771507187752,2.02199948,1938.5,1937.6,3.34096078]
[1771507187931,1.2896369,1938.6,1937.6,3.34096078]
[1771507188556,1.2896369,1938.6,1937.7,2.0507048]
[1771507189122,3.31148019,1938.8,1937.7,2.0507048]
[1771507189328,3.31148019,1938.8,1937.8,3.34082761]
[1771507190365,2.02199948,1938.5,1937.6,3.34095219]
[1771507190553,2.02199948,1938.5,1937.5,1.29028433]
[1771507190940,2.02199948,1938.4,1937.5,1.29028433]
[1771507191459,1.28979002,1938.3,1937.5,1.29028433]
[1771507191825,1.28979002,1938.3,1937.4,6.17241962]
[1771507191826,1.28979002,1938.3,1937.4,2.30133544]
[1771507192529,3.31173661,1938.4,1937.5,2.0507048]
[1771507193533,0.001,1938.3,1937.6,1.29025598]
[1771507195534,0.001,1938.3,1937.6,3.34096078]
[1771507195939,0.001,1938.3,1937.7,2.0507048]
[1771507196137,0.001,1938.3,1937.6,1.29025598]
[1771507196741,2.02299948,1938.3,1937.6,1.29025598]
[1771507196955,2.02299948,1938.3,1937.3,2.30140647]
[1771507197153,17.911264,1938.2,1937.3,1.011]
[1771507197468,2.02199948,1938.1,1937.3,2.30145329]
[1771507197688,2.02199948,1938.1,1936.4,5.26646858]
[1771507197689,2.02199948,1937.5,1936.4,1.29101508]
[1771507197840,7.02848825,1937.8,1936.3,1.29108252]
[1771507197841,2.02199948,1937.3,1936.3,1.29108252]
[1771507198035,2.02199948,1937.1,1936.0,3.34198122]
[1771507198232,2.02199948,1937.1,1935.9,1.29243851]
[1771507198579,2.02199948,1936.9,1935.9,1.2924858]
[1771507199244,2.02199948,1936.9,1935.9,0.0011]
[1771507199572,2.02199948,1936.9,1935.9,1.2924879]
[1771507199890,1.29078893,1936.8,1935.9,1.2924879]
[1771507200091,1.29078893,1936.8,1936.0,1.93850981]
[1771507200274,2.35458902,1937.1,1936.0,1.93850981]
[1771507200582,4.46000229,1937.1,1936.0,1.93850981]
[1771507201253,3.39600229,1937.1,1936.0,1.93850981]
[1771507201457,1.29045578,1937.3,1936.2,1.93850981]
[1771507201786,2.10541327,1936.9,1935.9,0.0011]
[1771507201967,2.10541327,1936.7,1935.9,0.0011]
[1771507202169,3.28478893,1936.8,1935.9,0.0011]
[1771507202170,2.10541327,1936.5,1935.9,0.0011]
[1771507202360,2.10541327,1936.4,1935.9,0.0011]
[1771507202559,2.10541327,1936.4,1935.8,0.0011]
[1771507202758,18.02511227,1936.3,1935.8,0.0011]
[1771507203205,1.065,1936.2,1935.8,0.0011]
[1771507203368,2.10541327,1936.0,1935.6,0.0011]
[1771507203957,1.29138901,1935.9,1935.6,0.0011]
[1771507204167,1.29138901,1935.9,1935.2,0.1108364]
[1771507204392,2.10541327,1935.8,1935.2,0.1108364]
[1771507204549,2.10541327,1935.8,1935.2,0.0508364]
[1771507205361,1.065,1936.3,1935.3,1.93850981]
[1771507205583,1.29105556,1936.4,1935.3,1.93850981]
[1771507205914,1.065,1936.3,1936.0,0.0011]
[1771507206263,1.29118892,1936.2,1936.0,0.0011]
[1771507206654,1.2910456,1936.5,1936.0,0.0011]
[1771507206862,5.16395558,1936.6,1936.0,0.0011]
[1771507206863,1.29097203,1936.6,1936.0,0.0011]
[1771507207085,2.35797203,1936.6,1936.0,0.0011]
[1771507207401,1.29097203,1936.6,1936.0,0.0011]
[1771507207584,2.35697203,1936.6,1936.0,0.0011]
[1771507208692,6.265375,1936.5,1936.0,0.0011]
[1771507208856,1.066,1936.5,1936.0,0.0011]
[1771507210789,1.29098889,1936.5,1936.0,0.0011]
[1771507211698,2.35595786,1936.6,1936.0,0.0011]
[1771507211898,2.0649096,1936.5,1935.9,0.0011]
[1771507212084,2.0649096,1936.3,1935.7,0.0011]
[1771507212803,1.29118892,1936.2,1935.7,0.0011]
[1771507212959,2.0649096,1936.0,1935.7,0.0011]
[1771507213160,1.066,1935.9,1935.7,0.0011]
[1771507213360,1.29118892,1936.2,1935.7,0.0011]
[1771507213560,1.066,1936.1,1935.7,0.0011]
[1771507213796,3.1309096,1936.1,1935.7,0.0011]
[1771507214002,3.1309096,1936.1,1935.1,2.11786144]
[1771507215297,1.29132231,1936.0,1935.1,3.40974611]
[1771507215589,1.29132231,1936.0,1935.1,2.11786144]
[1771507215787,1.29132231,1936.0,1935.1,3.40978311]
[1771507216570,1.066,1935.9,1935.1,3.40978311]
[1771507217459,1.065,1936.0,1935.2,2.11786144]
[1771507217664,2.35629394,1936.1,1935.2,2.11786144]
[1771507217860,5.16462546,1936.3,1935.2,2.11786144]
[1771507218064,1.065,1936.2,1935.2,2.11786144]
[1771507218496,5.16462546,1936.3,1935.2,2.11786144]
[1771507218700,1.065,1936.2,1935.2,2.11786144]
[1771507219006,3.1299096,1936.2,1935.3,0.0011]
[1771507219160,3.1309096,1936.2,1935.3,0.0011]
[1771507219364,1.29125561,1936.1,1935.3,2.11896144]
[1771507220203,6.2308306,1936.2,1935.3,2.11896144]
[1771507220204,0.001,1936.2,1935.3,2.11896144]
[1771507220376,2.35578893,1936.8,1935.4,2.11786144]
[1771507220776,2.35578893,1936.8,1935.5,2.11786144]
[1771507220966,1.29078893,1936.8,1935.5,2.11786144]
[1771507221598,5.16257301,1937.1,1935.7,2.11786144]
[1771507221815,1.064,1937.0,1935.7,2.11786144]
[1771507222604,1.064,1937.0,1935.8,2.11786144]
[1771507222913,1.29057253,1937.2,1935.9,2.11786144]
[1771507223602,1.29050737,1937.3,1935.9,2.11786144]
[1771507223790,1.29040172,1937.4,1936.3,2.11786144]
[1771507223995,3.35528411,1937.5,1936.3,2.11786144]
[1771507224379,1.29037451,1937.5,1936.3,2.11786144]
[1771507224795,3.35528411,1937.5,1936.3,2.11786144]
[1771507225408,2.0649096,1937.4,1936.3,2.11786144]
[1771507225703,2.0649096,1937.4,1936.0,1.29132231]
[1771507225704,2.0649096,1937.2,1936.0,1.29132231]
[1771507225878,2.0649096,1937.0,1936.0,1.29132231]
[1771507226281,2.0649096,1937.0,1936.1,2.11786144]
[1771507226901,1.29045578,1937.3,1936.1,2.11786144]
[1771507227106,2.35345578,1937.3,1936.2,2.11786144]
[1771507227481,2.0649096,1937.1,1936.0,3.40918375]
[1771507227700,2.0649096,1937.1,1935.9,5.16528925]
[1771507227701,1.29065565,1937.0,1936.2,1.29118892]
[1771507227887,1.29065565,1937.0,1936.2,3.40905036]
[1771507230501,3.35550193,1937.1,1936.2,3.40905036]
[1771507230710,5.16201426,1937.3,1936.3,2.11786144]
[1771507231714,1.29045578,1937.3,1936.3,2.11786144]
[1771507231919,1.29045578,1937.3,1936.4,3.408917]
[1771507232081,0.001,1936.9,1936.4,1.29105556]
[1771507234213,0.001,1936.9,1936.4,2.11786144]
[1771507234388,1.29038918,1937.4,1936.4,2.11786144]
[1771507234799,1.29012281,1937.8,1936.5,2.11786144]
[1771507235007,1.29012281,1937.8,1936.6,2.11786144]
[1771507236316,2.0649096,1938.2,1936.8,2.11786144]
[1771507236614,1.29079002,1938.3,1937.0,2.11786144]
[1771507236818,0.001,1938.3,1937.0,2.11786144]
[1771507237023,5.15829598,1938.7,1936.9,1.004]
[1771507237024,1.2894446,1938.9,1937.5,2.09736815]
[1771507237188,1.28937164,1939.0,1937.7,2.09736815]
[1771507237393,2.04776232,1938.9,1937.7,2.09736815]
[1771507238027,1.28937164,1939.0,1937.7,2.09736815]
[1771507238330,5.15720868,1939.1,1937.9,2.09736815]
[1771507238697,1.2892579,1939.1,1937.9,2.09736815]
[1771507240128,3.33699476,1939.2,1937.9,2.09736815]
[1771507240289,3.33699476,1939.2,1938.1,2.09736815]
[1771507240488,1.28923244,1939.2,1938.2,4.71617188]
[1771507241428,3.33699476,1939.2,1938.2,4.71617188]
[1771507241796,3.33699476,1939.2,1938.3,2.09736815]
[1771507242892,3.33699476,1939.2,1938.4,1.28972348]
[1771507244395,0.001,1939.0,1938.4,1.28972348]
[1771507245694,5.15752731,1939.3,1938.5,2.09736815]
[1771507245695,0.001,1939.3,1938.5,2.09736815]
[1771507245893,1.29012783,1939.3,1938.5,2.09736815]
[1771507247197,2.04776232,1939.2,1938.3,1.28973673]
[1771507247425,2.04776232,1939.2,1938.2,2.28980724]
[1771507247801,2.04776232,1939.0,1938.2,2.28980724]
[1771507248822,2.04776232,1939.0,1938.2,1.0]
[1771507249011,2.04776232,1939.0,1937.8,7.25763923]
[1771507249012,2.04776232,1938.9,1937.8,7.25763923]
[1771507249199,2.04776232,1938.9,1937.8,3.38743697]
[1771507249525,2.04776232,1938.8,1937.8,3.38743697]
[1771507249927,3.33728622,1938.7,1937.8,3.38743697]
[1771507250221,2.04776232,1938.6,1937.6,2.09736815]
[1771507250426,2.04776232,1938.6,1937.5,5.16092539]
[1771507250427,2.04776232,1938.6,1937.5,1.29032258]
[1771507251227,2.04776232,1938.5,1937.5,3.38769073]
[1771507251808,2.04776232,1938.5,1937.5,1.29032258]
[1771507252005,2.04776232,1938.3,1937.4,2.22034705]
[1771507252445,2.04776232,1938.3,1937.4,0.93]
[1771507252733,3.10476232,1938.3,1937.4,2.22037301]
[1771507253026,5.15889393,1938.6,1937.5,2.09736815]
[1771507253027,2.04776232,1938.6,1937.5,2.09736815]
[1771507253216,1.28970008,1938.5,1937.5,2.09736815]
[1771507253418,2.04776232,1938.4,1937.5,2.09736815]
[1771507253622,2.04776232,1938.4,1937.4,2.22037301]
[1771507254321,2.04776232,1938.2,1937.4,2.22037301]
[1771507254629,2.04776232,1938.2,1937.4,4.31774116]
[1771507254825,2.04776232,1938.2,1937.4,2.22037301]
[1771507255922,2.04776232,1938.2,1937.4,2.2203853]
[1771507256107,2.04776232,1938.2,1937.4,0.93]
[1771507256510,2.04776232,1938.0,1937.5,0.0011]
[1771507258540,2.04776232,1937.8,1937.4,0.0011]
[1771507258908,2.04776232,1937.8,1937.2,0.0011]
[1771507260413,6.09022498,1938.0,1937.2,2.04380571]
[1771507260414,1.28998968,1938.0,1937.2,2.04380571]
[1771507262211,3.19765232,1938.1,1937.2,2.04380571]
[1771507262533,1.29005624,1937.9,1937.2,3.33430054]
[1771507262926,1.29005624,1937.9,1937.2,1.29159483]
[1771507263123,3.19773252,1937.9,1937.2,1.29159483]
[1771507263913,1.29005624,1937.9,1937.2,3.33430054]
[1771507264235,1.29005624,1937.9,1937.3,2.04270571]
[1771507265119,1.28992312,1938.1,1937.4,1.29038918]
[1771507265314,2.34392312,1938.1,1937.3,3.3331124]
[1771507265521,4.2515994,1938.1,1937.3,3.3331124]
[1771507268812,4.2515994,1938.1,1937.4,0.0011]
[1771507269714,1.88960989,1938.0,1937.4,0.0011]
[1771507270241,1.88960989,1937.8,1937.3,0.0011]
[1771507271537,2.94060989,1937.7,1937.3,0.0011]
[1771507272240,1.29025598,1937.6,1937.3,0.0011]
[1771507274725,4.23084707,1937.7,1937.3,0.0011]
[1771507275225,3.17984707,1937.7,1937.3,0.0011]
[1771507275425,4.23084707,1937.7,1937.3,0.0011]
[1771507275825,3.17984707,1937.7,1937.3,0.0011]
[1771507276046,4.23084707,1937.7,1937.3,0.0011]
[1771507276925,3.17984707,1937.7,1937.3,0.0011]
[1771507277124,4.23184707,1937.7,1937.3,0.0011]
[1771507279553,1.88960989,1937.6,1937.3,0.0011]
[1771507279722,1.88960989,1937.6,1937.2,0.0011]
[1771507279921,1.88960989,1937.4,1937.1,0.0011]
[1771507280137,1.88960989,1937.2,1936.7,0.0011]
[1771507281354,1.88960989,1937.2,1936.4,0.0011]
[1771507281651,1.88960989,1937.0,1936.4,0.0011]
[1771507281947,1.29058902,1937.1,1936.4,0.0011]
[1771507281948,1.88960989,1936.8,1936.4,0.0011]
[1771507282127,1.053,1936.9,1936.4,0.0011]
[1771507282327,2.94260989,1936.9,1936.4,0.0011]
[1771507282549,1.88960989,1936.8,1936.4,0.0011]
[1771507283145,1.88960989,1936.8,1935.8,3.23514955]
[1771507283349,1.88960989,1936.8,1935.8,1.94373845]
[1771507283541,1.88960989,1936.6,1935.8,1.94373845]
[1771507283740,2.94260989,1936.5,1935.8,1.94373845]
[1771507284155,1.88960989,1936.4,1935.6,0.0011]
[1771507285634,1.88960989,1936.2,1935.6,0.0011]
[1771507287359,1.051,1936.1,1935.6,0.0011]
[1771507287736,1.29132231,1936.0,1935.6,0.0011]
[1771507287938,1.88960989,1935.9,1935.3,0.0011]
[1771507288241,1.88960989,1935.7,1935.0,0.0011]
[1771507288432,1.88960989,1935.5,1935.0,0.0011]
[1771507288866,1.88960989,1935.7,1935.0,0.0011]
[1771507289162,1.052,1935.8,1935.1,1.94373845]
[1771507289833,1.29152244,1935.7,1935.1,1.94373845]
[1771507290554,1.29152244,1935.7,1935.1,3.23566092]
[1771507290761,1.29150494,1935.8,1935.2,1.94373845]
[1771507291063,2.34336987,1936.0,1935.2,1.94373845]
[1771507291430,1.29136987,1936.0,1935.2,1.94373845]
[1771507291830,1.29136987,1936.0,1935.2,3.23554169]
[1771507292031,1.29136987,1936.0,1935.3,1.94373845]
[1771507292538,3.18097976,1936.0,1935.3,1.94373845]
[1771507293059,4.23197976,1936.0,1935.3,1.94373845]
[1771507293260,4.23197976,1936.0,1935.1,1.29189842]
[1771507293440,4.23197976,1936.0,1935.2,1.94373845]
[1771507293965,1.29105556,1936.4,1935.4,1.94373845]
[1771507294143,1.29105556,1936.4,1935.4,1.94483845]
[1771507294144,3.18066545,1936.4,1935.4,1.94483845]
[1771507294341,1.29105556,1936.4,1935.4,1.94483845]
[1771507294563,1.88960989,1936.3,1935.4,0.0011]
[1771507294736,1.88960989,1936.1,1935.4,0.0011]
[1771507294936,1.88960989,1935.9,1935.4,0.0011]
[1771507295958,1.29145572,1935.8,1935.4,0.0011]
[1771507296468,1.29144315,1935.9,1935.4,0.0011]
[1771507297982,1.29118892,1936.2,1935.4,1.95039152]
[1771507298272,1.05,1936.1,1935.4,1.95039152]
[1771507298443,1.29118892,1936.2,1935.4,1.95039152]
[1771507299837,3.31674099,1936.3,1935.4,1.95039152]
[1771507300037,3.31674099,1936.3,1935.5,3.24094742]
[1771507300344,5.16403716,1936.5,1935.6,1.94929152]
[1771507300539,1.29098889,1936.5,1935.6,1.94929152]
[1771507302275,2.02557471,1936.5,1935.5,5.16647577]
[1771507302461,2.02557471,1936.5,1935.4,3.24211011]
[1771507302644,2.02557471,1936.5,1935.5,1.94929152]
[1771507304658,1.29105556,1936.4,1935.6,3.24088069]
[1771507304966,2.33905556,1936.4,1935.6,3.24088069]
[1771507306060,1.29105556,1936.4,1935.6,3.24088069]
[1771507306260,2.33905556,1936.4,1935.6,1.29158917]
[1771507306448,4.36443028,1936.7,1935.7,1.94929152]
[1771507306973,4.36443028,1936.7,1935.8,3.24074724]
[1771507307277,2.02557471,1936.6,1935.7,1.29147453]
[1771507307684,0.001,1936.4,1935.7,1.29147453]
[1771507307862,0.001,1936.4,1935.8,1.94929152]
[1771507308178,1.29065565,1937.0,1935.8,1.94929152]
[1771507308777,2.02557471,1936.9,1935.8,1.94929152]
[1771507308950,3.31636364,1936.8,1935.9,3.24068053]
[1771507309272,3.31636364,1936.8,1936.0,1.94929152]
[1771507309446,1.29078893,1936.8,1936.0,1.94929152]
[1771507309643,2.02557471,1936.7,1935.7,5.1478034]
[1771507309958,2.02557471,1936.7,1935.7,5.14780687]
[1771507311305,2.02557471,1936.5,1935.7,5.14780687]
[1771507311651,2.02557471,1936.5,1935.7,3.85629152]
[1771507311852,2.02557471,1936.5,1935.7,0.931]
[1771507312787,2.02557471,1936.5,1935.4,3.24211182]
[1771507313284,2.02557471,1936.3,1935.4,3.24211182]
[1771507313466,3.07157471,1936.3,1935.4,3.24211182]
[1771507315865,1.29118892,1936.2,1935.5,1.94929152]
[1771507317994,5.1647557,1936.3,1935.6,1.29158917]
[1771507318293,5.1647557,1936.3,1935.6,3.24088069]
[1771507319166,5.1647557,1936.3,1935.7,1.94929152]
[1771507320186,5.1647557,1936.3,1935.7,3.24191201]
[1771507320490,1.29112224,1936.3,1935.8,1.95955602]
[1771507320965,0.001,1936.4,1935.8,1.95955602]
[1771507321476,1.29205805,1936.4,1935.8,1.95955602]
[1771507322168,0.001,1936.4,1935.9,1.29138901]
[1771507322380,0.001,1936.4,1936.0,1.95955602]
[1771507322871,0.001,1936.4,1935.8,1.29140717]
[1771507322872,0.001,1936.4,1935.8,3.25096319]
[1771507323105,0.001,1936.4,1935.9,1.95955602]
[1771507324570,0.001,1936.4,1935.8,1.29140717]
[1771507324778,0.001,1936.4,1935.9,1.95955602]
[1771507326104,0.001,1936.4,1935.7,4.22212]
[1771507326406,1.91510205,1936.4,1935.7,3.25212]
[1771507327306,0.001,1936.4,1935.8,1.94630998]
[1771507328909,0.001,1936.4,1935.8,3.2377657]
[1771507330303,0.001,1936.4,1935.9,1.94630998]
[1771507330906,0.001,1936.4,1936.0,1.29132231]
[1771507331204,0.001,1936.4,1936.0,3.23763229]
[1771507331402,1.97737245,1936.4,1935.7,0.0011]
[1771507331702,1.97737245,1936.4,1935.7,3.23891954]
[1771507332000,0.001,1936.4,1935.8,1.94630998]
[1771507332505,0.001,1936.3,1935.8,1.94740998]
[1771507333198,0.001,1936.3,1935.9,1.94630998]
[1771507335102,0.001,1936.4,1936.0,3.23763229]
[1771507335306,0.001,1936.4,1936.1,1.94630998]
[1771507335887,0.001,1936.4,1936.0,1.29132231]
[1771507336409,0.001,1936.4,1936.0,3.23763229]
[1771507336704,0.001,1936.4,1936.1,1.94630998]
[1771507337075,0.001,1936.4,1936.0,1.29132231]
[1771507337276,0.001,1936.4,1935.9,5.16528925]
[1771507337920,0.001,1936.4,1935.9,1.29138901]
[1771507338301,0.001,1936.4,1935.8,3.23882262]
[1771507339110,1.97637245,1936.9,1935.9,1.94630998]
[1771507339279,1.97637245,1936.8,1936.1,1.94630998]
[1771507339987,1.97637245,1936.8,1936.0,2.26032231]
[1771507340694,1.97637245,1936.8,1936.0,4.20663229]
[1771507341601,0.001,1937.1,1936.1,1.94630998]
[1771507341800,1.29159154,1937.1,1936.3,1.94630998]
[1771507344141,0.001,1936.7,1936.4,3.23736554]
[1771507344446,0.001,1937.1,1936.6,1.94630998]
[1771507345113,1.97637245,1937.5,1936.7,1.94630998]
[1771507345313,1.97637245,1937.7,1936.7,1.94630998]
[1771507345518,1.29025722,1937.6,1936.7,1.94630998]
[1771507345943,1.29025722,1937.6,1936.9,1.94630998]
[1771507347249,3.26661348,1937.7,1936.9,1.94630998]
[1771507347555,1.29015622,1937.8,1936.9,1.94630998]
[1771507347946,1.29015622,1937.8,1937.1,1.94630998]